bitfinex/quotes_BTCUSD_20240820
["timestamp","ask_amount","ask_price","bid_price","bid_amount"]
[1724141311077,2.44752321,60947.0,60946.0,0.0019086]
[1724141312669,2.44652321,60947.0,60946.0,0.0019086]
[1724141315232,2.44752321,60947.0,60946.0,0.0019086]
[1724141315806,2.45052321,60947.0,60946.0,0.0019086]
[1724141315934,2.44752321,60947.0,60946.0,0.0019086]
[1724141316130,3.12060241,60947.0,60946.0,0.0019086]
[1724141316326,3.12360241,60947.0,60946.0,0.0019086]
[1724141316526,3.12260241,60947.0,60946.0,0.0019086]
[1724141316757,3.12060241,60947.0,60946.0,0.0019086]
[1724141316974,3.21892003,60947.0,60946.0,0.0019086]
[1724141317192,3.12060241,60947.0,60946.0,0.0019086]
[1724141318002,3.11960241,60947.0,60946.0,0.0019086]
[1724141318611,2.48060241,60947.0,60946.0,0.0019086]
[1724141318809,2.47960241,60947.0,60946.0,0.0019086]
[1724141319011,2.60349944,60947.0,60946.0,0.0019086]
[1724141319251,2.48060241,60947.0,60946.0,0.0019086]
[1724141319455,2.48160241,60947.0,60946.0,0.0019086]
[1724141319662,2.48060241,60947.0,60946.0,0.0019086]
[1724141321198,2.33572321,60947.0,60946.0,0.0019086]
[1724141321420,1.98257021,60947.0,60946.0,0.0019086]
[1724141321633,1.98257021,60947.0,60946.0,0.1404086]
[1724141321634,0.90538258,60947.0,60946.0,0.1404086]
[1724141322043,1.32719471,60947.0,60946.0,0.1404086]
[1724141322252,1.72552083,60947.0,60946.0,0.1404086]
[1724141323052,1.39736783,60947.0,60946.0,0.1404086]
[1724141323714,1.72552083,60947.0,60946.0,0.1404086]
[1724141323891,1.39736783,60947.0,60946.0,0.1404086]
[1724141324127,1.77468726,60947.0,60946.0,0.1404086]
[1724141325131,1.44653426,60947.0,60946.0,0.1404086]
[1724141325312,1.45628243,60947.0,60946.0,0.1404086]
[1724141325558,1.78443543,60947.0,60946.0,0.1404086]
[1724141325772,1.78443543,60947.0,60946.0,0.0788086]
[1724141325985,1.78444506,60947.0,60946.0,0.0788086]
[1724141326616,1.45629206,60947.0,60946.0,0.0788086]
[1724141327029,1.39736783,60947.0,60946.0,0.0788086]
[1724141327796,1.44654389,60947.0,60946.0,0.0788086]
[1724141327948,1.44654389,60947.0,60946.0,0.1440086]
[1724141327949,0.90538112,60947.0,60946.0,0.1440086]
[1724141328126,0.947008,60947.0,60946.0,0.1440086]
[1724141329134,1.01715474,60947.0,60946.0,0.1440086]
[1724141329347,1.50914145,60947.0,60946.0,0.1440086]
[1724141329719,1.55831751,60947.0,60946.0,0.1440086]
[1724141330554,1.88647051,60947.0,60946.0,0.1440086]
[1724141331640,1.88647051,60947.0,60946.0,0.0019086]
[1724141332493,1.88648545,60947.0,60946.0,0.0019086]
[1724141332700,1.83729445,60947.0,60946.0,0.0019086]
[1724141334539,1.92079788,60947.0,60946.0,0.0019086]
[1724141335506,1.92079788,60947.0,60946.0,0.00184205]
[1724141335507,2.24995088,60947.0,60946.0,0.00184205]
[1724141335754,2.39914188,60947.0,60946.0,0.00184205]
[1724141335973,2.27616438,60947.0,60946.0,0.00184205]
[1724141336216,2.33786438,60947.0,60946.0,0.00184205]
[1724141336610,2.33686438,60947.0,60946.0,0.00184205]
[1724141337309,2.33786438,60947.0,60946.0,0.00184205]
[1724141337721,2.33686438,60947.0,60946.0,0.00184205]
[1724141338129,1.93729445,60947.0,60946.0,0.14224205]
[1724141338557,1.93729445,60947.0,60946.0,0.08084205]
[1724141338763,2.07849445,60947.0,60946.0,0.00184205]
[1724141338914,2.08049445,60947.0,60946.0,0.00184205]
[1724141339675,2.40464745,60947.0,60946.0,0.00184205]
[1724141339893,2.40664745,60947.0,60946.0,0.00184205]
[1724141340098,2.40464745,60947.0,60946.0,0.00184205]
[1724141340506,2.40464745,60947.0,60946.0,5e-08]
[1724141340507,3.58705489,60947.0,60946.0,5e-08]
[1724141340707,3.61205489,60947.0,60946.0,5e-08]
[1724141343259,2.30227167,60947.0,60946.0,5e-08]
[1724141343466,2.26644745,60947.0,60946.0,5e-08]
[1724141344492,2.26844745,60947.0,60946.0,5e-08]
[1724141344689,2.27044745,60947.0,60946.0,5e-08]
[1724141345704,2.29344745,60947.0,60946.0,5e-08]
[1724141345909,2.45542623,60947.0,60946.0,5e-08]
[1724141346476,2.60305045,60947.0,60946.0,5e-08]
[1724141346677,2.45742623,60947.0,60946.0,5e-08]
[1724141347074,2.45642623,60947.0,60946.0,5e-08]
[1724141347268,2.60107252,60947.0,60946.0,5e-08]
[1724141347496,2.45542623,60947.0,60946.0,5e-08]
[1724141347692,2.45342623,60947.0,60946.0,5e-08]
[1724141348500,3.40187923,60947.0,60946.0,5e-08]
[1724141349072,3.40287923,60947.0,60946.0,5e-08]
[1724141349275,3.40187923,60947.0,60946.0,6.5e-07]
[1724141349479,3.40287923,60947.0,60946.0,6.5e-07]
[1724141349893,3.40187923,60947.0,60946.0,6.5e-07]
[1724141350098,3.54951492,60947.0,60946.0,6.5e-07]
[1724141350292,3.55251492,60947.0,60946.0,6.5e-07]
[1724141351102,3.40487923,60947.0,60946.0,6.5e-07]
[1724141352514,3.60307923,60947.0,60946.0,6.5e-07]
[1724141352696,3.71487923,60947.0,60946.0,6.5e-07]
[1724141356312,3.71487923,60947.0,60946.0,0.14210065]
[1724141356313,2.15464745,60947.0,60946.0,0.14210065]
[1724141356529,2.26744745,60947.0,60946.0,0.14210065]
[1724141356733,2.26644745,60947.0,60946.0,0.08180065]
[1724141356947,2.26644745,60947.0,60946.0,6.5e-07]
[1724141357362,2.45342623,60947.0,60946.0,6.5e-07]
[1724141357567,2.95342623,60947.0,60946.0,6.5e-07]
[1724141358412,2.45342623,60947.0,60946.0,6.5e-07]
[1724141358826,2.45442623,60947.0,60946.0,6.5e-07]
[1724141359029,2.45342623,60947.0,60946.0,6.5e-07]
[1724141360084,2.46251223,60947.0,60946.0,6.5e-07]
[1724141361310,2.29853345,60947.0,60946.0,6.5e-07]
[1724141363177,2.29853345,60947.0,60946.0,0.14430065]
[1724141363384,2.29853345,60947.0,60946.0,0.08040065]
[1724141363589,2.29853345,60947.0,60946.0,6.5e-07]
[1724141363789,2.77853345,60947.0,60946.0,6.5e-07]
[1724141364219,2.94251223,60947.0,60946.0,6.5e-07]
[1724141367878,2.94451223,60947.0,60946.0,6.5e-07]
[1724141368108,2.94251223,60947.0,60946.0,6.5e-07]
[1724141369496,2.94651223,60947.0,60946.0,6.5e-07]
[1724141369698,3.02751223,60947.0,60946.0,6.5e-07]
[1724141370107,3.02751223,60947.0,60944.0,6.5e-07]
[1724141370108,0.005,60945.0,60944.0,6.5e-07]
[1724141370318,2.83773571,60945.0,60944.0,6.5e-07]
[1724141370533,3.00788245,60945.0,60944.0,6.5e-07]
[1724141370928,3.33604645,60945.0,60944.0,6.5e-07]
[1724141371130,3.50002523,60945.0,60944.0,6.5e-07]
[1724141372377,3.18086123,60945.0,60944.0,6.5e-07]
[1724141372509,3.18986123,60945.0,60944.0,6.5e-07]
[1724141372717,2.34886123,60945.0,60944.0,6.5e-07]
[1724141372917,3.08066123,60945.0,60944.0,6.5e-07]
[1724141373526,1.83271845,60945.0,60944.0,0.07760065]
[1724141373752,1.93113198,60945.0,60944.0,0.14160065]
[1724141373955,1.94451845,60945.0,60944.0,0.14160065]
[1724141374584,2.04293198,60945.0,60944.0,0.14160065]
[1724141375192,1.94451845,60945.0,60944.0,0.14160065]
[1724141375728,2.04295827,60945.0,60944.0,0.14160065]
[1724141377182,1.94451845,60945.0,60944.0,0.14160065]
[1724141379587,2.04296234,60945.0,60944.0,0.14160065]
[1724141380027,1.94451845,60945.0,60944.0,0.14160065]
[1724141380226,2.04296234,60945.0,60944.0,0.14160065]
[1724141381697,2.04298563,60945.0,60944.0,0.14160065]
[1724141383967,1.94451845,60945.0,60944.0,0.14160065]
[1724141384362,1.94534445,60945.0,60944.0,0.14160065]
[1724141385139,1.47922244,60945.0,60944.0,0.14160065]
[1724141385348,1.51718045,60945.0,60944.0,0.14160065]
[1724141385810,1.44703371,60945.0,60944.0,0.14160065]
[1724141386177,1.43403371,60945.0,60944.0,0.14160065]
[1724141386376,1.42503371,60945.0,60944.0,0.14160065]
[1724141387281,1.43103371,60945.0,60944.0,0.14160065]
[1724141387682,1.44103371,60945.0,60944.0,0.14160065]
[1724141389613,1.43796004,60945.0,60944.0,0.14160065]
[1724141392977,1.27412633,60945.0,60944.0,0.14160065]
[1724141394106,0.180908,60945.0,60944.0,0.14160065]
[1724141394317,0.509072,60945.0,60944.0,0.14160065]
[1724141394559,0.180908,60945.0,60944.0,0.14160065]
[1724141395021,0.164908,60945.0,60944.0,0.14160065]
[1724141395444,0.171908,60945.0,60944.0,0.14160065]
[1724141395650,0.166908,60945.0,60944.0,0.14160065]
[1724141395899,0.164908,60945.0,60944.0,0.14160065]
[1724141396105,0.167908,60945.0,60944.0,0.14160065]
[1724141398298,0.164908,60945.0,60944.0,0.14360065]
[1724141398582,0.164908,60945.0,60944.0,0.14460065]
[1724141400856,0.493072,60945.0,60944.0,0.14460065]
[1724141401152,0.164908,60945.0,60944.0,0.14460065]
[1724141402148,0.604872,60945.0,60944.0,0.14460065]
[1724141404208,0.276708,60945.0,60944.0,0.14460065]
[1724141404678,0.164908,60945.0,60944.0,0.14460065]
[1724141405598,0.000826,60945.0,60944.0,0.14460065]
[1724141406034,0.164908,60945.0,60944.0,0.14460065]
[1724141411251,0.493072,60945.0,60944.0,0.14460065]
[1724141411524,0.604872,60945.0,60944.0,0.14460065]
[1724141418324,0.493072,60945.0,60944.0,0.14460065]
[1724141432411,0.604872,60945.0,60944.0,0.14460065]
[1724141434628,0.604872,60945.0,60944.0,0.15762155]
[1724141436574,0.604872,60945.0,60944.0,0.14460065]
[1724141436848,0.604872,60945.0,60944.0,0.15762155]
[1724141437274,0.933036,60945.0,60944.0,0.15762155]
[1724141438078,0.933036,60945.0,60944.0,0.09362155]
[1724141442080,0.933036,60945.0,60944.0,0.01602155]
[1724141442519,1.2612,60945.0,60944.0,0.01602155]
[1724141442753,1.2612,60945.0,60944.0,0.01402155]
[1724141443200,1.2612,60945.0,60944.0,0.01502155]
[1724141443609,1.2612,60945.0,60944.0,0.01402155]
[1724141443825,1.2612,60945.0,60944.0,0.01502155]
[1724141444484,1.2612,60945.0,60944.0,0.01402155]
[1724141445856,1.2612,60945.0,60944.0,0.01302155]
[1724141446280,1.2612,60945.0,60944.0,0.01402155]
[1724141446705,1.2612,60945.0,60944.0,0.01302155]
[1724141447116,1.2612,60945.0,60944.0,0.01402155]
[1724141449530,1.2612,60945.0,60944.0,0.01302155]
[1724141449705,1.2622,60945.0,60944.0,0.01302155]
[1724141450110,1.2622,60945.0,60944.0,0.01402155]
[1724141452068,1.2622,60945.0,60944.0,0.01302155]
[1724141452493,1.2622,60945.0,60944.0,0.01402155]
[1724141452702,1.2612,60945.0,60944.0,0.01402155]
[1724141452908,1.2622,60945.0,60944.0,0.01402155]
[1724141459070,1.56763371,60945.0,60944.0,0.01402155]
[1724141459307,1.94506102,60945.0,60944.0,0.00100065]
[1724141459509,2.03983597,60945.0,60944.0,0.00100065]
[1724141460144,2.04952394,60945.0,60944.0,0.00100065]
[1724141460563,2.04952394,60945.0,60944.0,6.5e-07]
[1724141460767,2.04852394,60945.0,60944.0,6.5e-07]
[1724141461639,1.97469529,60945.0,60944.0,6.5e-07]
[1724141462051,1.99169529,60945.0,60944.0,6.5e-07]
[1724141462250,2.04089093,60945.0,60944.0,6.5e-07]
[1724141462473,2.03089093,60945.0,60944.0,6.5e-07]
[1724141462783,2.03389093,60945.0,60944.0,6.5e-07]
[1724141462984,2.04089093,60945.0,60944.0,6.5e-07]
[1724141463522,1.99169529,60945.0,60944.0,6.5e-07]
[1724141465569,1.92148568,60945.0,60944.0,6.5e-07]
[1724141467506,2.29681448,60945.0,60944.0,6.5e-07]
[1724141467722,2.9163308,60945.0,60944.0,6.5e-07]
[1724141467922,3.04191104,60945.0,60944.0,6.5e-07]
[1724141468126,2.91800986,60945.0,60944.0,6.5e-07]
[1724141468563,2.41084506,60945.0,60944.0,6.5e-07]
[1724141468763,2.40384506,60945.0,60944.0,6.5e-07]
[1724141468974,2.41684506,60945.0,60944.0,6.5e-07]
[1724141469117,2.42784506,60945.0,60944.0,6.5e-07]
[1724141469324,2.42684506,60945.0,60944.0,6.5e-07]
[1724141469721,3.19064015,60945.0,60944.0,6.5e-07]
[1724141469960,3.35361893,60945.0,60944.0,6.5e-07]
[1724141470179,3.37661893,60945.0,60944.0,6.5e-07]
[1724141470433,3.21364015,60945.0,60944.0,6.5e-07]
[1724141470653,3.09084506,60945.0,60944.0,6.5e-07]
[1724141470868,2.44984506,60945.0,60944.0,6.5e-07]
[1724141471303,2.45084506,60945.0,60944.0,6.5e-07]
[1724141471514,2.54903964,60945.0,60944.0,6.5e-07]
[1724141471728,2.54903986,60945.0,60944.0,6.5e-07]
[1724141473516,2.45084506,60945.0,60944.0,6.5e-07]
[1724141474726,2.68843166,60945.0,60944.0,6.5e-07]
[1724141474727,3.09843166,60945.0,60944.0,6.5e-07]
[1724141474972,2.93345288,60945.0,60944.0,6.5e-07]
[1724141475192,2.52345288,60945.0,60944.0,6.5e-07]
[1724141476455,2.52344391,60945.0,60944.0,6.5e-07]
[1724141476664,2.52444391,60945.0,60944.0,6.5e-07]
[1724141476864,2.52344391,60945.0,60944.0,6.5e-07]
[1724141477525,2.44984506,60945.0,60944.0,6.5e-07]
[1724141478096,2.84084506,60945.0,60944.0,6.5e-07]
[1724141478422,3.00382384,60945.0,60944.0,6.5e-07]
[1724141478984,2.83984506,60945.0,60944.0,6.5e-07]
[1724141479635,2.88989474,60945.0,60944.0,6.5e-07]
[1724141480029,2.88889474,60945.0,60944.0,6.5e-07]
[1724141480223,2.89798074,60945.0,60944.0,6.5e-07]
[1724141481006,2.89797762,60945.0,60944.0,6.5e-07]
[1724141481636,2.45893106,60945.0,60944.0,6.5e-07]
[1724141483555,1.96516706,60945.0,60944.0,6.5e-07]
[1724141483759,1.88588568,60945.0,60944.0,6.5e-07]
[1724141484522,1.88788568,60945.0,60944.0,6.5e-07]
[1724141484686,2.21604968,60945.0,60944.0,6.5e-07]
[1724141486790,2.21504968,60945.0,60944.0,6.5e-07]
[1724141487320,2.21604968,60945.0,60944.0,6.5e-07]
[1724141488338,2.21504968,60945.0,60944.0,6.5e-07]
[1724141488621,2.28621559,60945.0,60944.0,6.5e-07]
[1724141489082,2.28521559,60945.0,60944.0,6.5e-07]
[1724141489282,2.28621559,60945.0,60944.0,6.5e-07]
[1724141489494,2.28521559,60945.0,60944.0,6.5e-07]
[1724141489696,2.28621559,60945.0,60944.0,6.5e-07]
[1724141490126,2.28521559,60945.0,60944.0,6.5e-07]
[1724141490349,2.28621559,60945.0,60944.0,6.5e-07]
[1724141492013,2.28521559,60945.0,60944.0,6.5e-07]
[1724141492635,2.28621559,60945.0,60944.0,6.5e-07]
[1724141494304,2.28521559,60945.0,60944.0,6.5e-07]
[1724141495341,2.84919437,60945.0,60944.0,6.5e-07]
[1724141495545,2.44919437,60945.0,60944.0,6.5e-07]
[1724141496801,2.45019437,60945.0,60944.0,6.5e-07]
[1724141497009,2.44919437,60945.0,60944.0,6.5e-07]
[1724141497214,2.45019437,60945.0,60944.0,6.5e-07]
[1724141498035,2.33839437,60945.0,60944.0,6.5e-07]
[1724141498243,2.45019437,60945.0,60944.0,6.5e-07]
[1724141498665,2.44919437,60945.0,60944.0,6.5e-07]
[1724141498872,2.45019437,60945.0,60944.0,6.5e-07]
[1724141499286,2.44919437,60945.0,60944.0,6.5e-07]
[1724141499492,2.45019437,60945.0,60944.0,6.5e-07]
[1724141499873,2.28521559,60945.0,60944.0,0.00220965]
[1724141500079,2.28621559,60945.0,60944.0,0.00220965]
[1724141500284,2.33429786,60945.0,60944.0,0.00220965]
[1724141500490,2.22249786,60945.0,60944.0,0.00220965]
[1724141500684,2.33429786,60945.0,60944.0,0.00220965]
[1724141502270,2.28521559,60945.0,60944.0,0.00220965]
[1724141503324,2.358839,60945.0,60944.0,0.00220965]
[1724141504156,2.359839,60945.0,60944.0,0.00220965]
[1724141504469,2.28621559,60945.0,60944.0,0.00220965]
[1724141507167,2.28521559,60945.0,60944.0,0.00220965]
[1724141508690,2.38338014,60945.0,60944.0,0.00220965]
[1724141508897,2.38349845,60945.0,60944.0,0.00220965]
[1724141513682,2.38351591,60945.0,60944.0,0.00220965]
[1724141514091,2.38451591,60945.0,60944.0,0.00220965]
[1724141514466,2.38351591,60945.0,60944.0,0.00220965]
[1724141516913,2.27271591,60945.0,60944.0,0.00220965]
[1724141517115,2.38351591,60945.0,60944.0,0.00220965]
[1724141518212,2.3845481,60945.0,60944.0,0.00220965]
[1724141518413,2.3835481,60945.0,60944.0,0.00220965]
[1724141519045,2.3845481,60945.0,60944.0,0.00220965]
[1724141520312,2.28521559,60945.0,60944.0,0.00220965]
[1724141526888,3.10521559,60945.0,60944.0,0.00220965]
[1724141527746,3.26919437,60945.0,60944.0,0.00220965]
[1724141533747,3.10521559,60945.0,60944.0,0.00220965]
[1724141540448,3.60447959,60945.0,60944.0,0.00220965]
[1724141541066,3.60647959,60945.0,60944.0,0.00220965]
[1724141541265,3.60647959,60945.0,60944.0,6.5e-07]
[1724141541491,3.59647959,60945.0,60944.0,6.5e-07]
[1724141541674,3.76045837,60945.0,60944.0,6.5e-07]
[1724141541817,3.76145837,60945.0,60944.0,6.5e-07]
[1724141542221,3.77145837,60945.0,60944.0,6.5e-07]
[1724141543708,3.87010837,60945.0,60944.0,6.5e-07]
[1724141545560,3.87010837,60945.0,60944.0,0.00090925]
[1724141548597,3.87110837,60945.0,60944.0,0.00090925]
[1724141549468,3.87010837,60945.0,60944.0,0.00090925]
[1724141550301,2.236755,60944.0,60943.0,2.5e-07]
[1724141550501,3.22868282,60944.0,60943.0,2.5e-07]
[1724141550706,3.0771334,60944.0,60943.0,2.5e-07]
[1724141550858,3.1909334,60944.0,60943.0,2.5e-07]
[1724141551264,3.1929334,60944.0,60943.0,2.5e-07]
[1724141551653,3.1889334,60944.0,60943.0,2.5e-07]
[1724141551856,2.71555462,60944.0,60943.0,2.5e-07]
[1724141552263,2.72955462,60944.0,60943.0,2.5e-07]
[1724141552698,2.71555462,60944.0,60943.0,2.5e-07]
[1724141553130,2.70155462,60944.0,60943.0,2.5e-07]
[1724141553368,2.8655334,60944.0,60943.0,2.5e-07]
[1724141553532,2.7808834,60944.0,60943.0,2.5e-07]
[1724141554868,2.7948834,60944.0,60943.0,2.5e-07]
[1724141555242,2.7808834,60944.0,60943.0,2.5e-07]
[1724141555669,2.7948834,60944.0,60943.0,2.5e-07]
[1724141559132,1.73976462,60944.0,60943.0,0.14020025]
[1724141559411,1.95088025,60944.0,60943.0,0.14020025]
[1724141559634,1.92630494,60944.0,60943.0,0.14020025]
[1724141560316,1.92629562,60944.0,60943.0,0.14020025]
[1724141560519,1.95256462,60944.0,60943.0,0.14020025]
[1724141561383,2.02629498,60944.0,60943.0,0.14020025]
[1724141561595,1.95256462,60944.0,60943.0,0.14020025]
[1724141561800,1.95256462,60944.0,60943.0,0.07970025]
[1724141562007,1.95256462,60944.0,60943.0,0.07890025]
[1724141564870,1.95156462,60944.0,60943.0,0.07890025]
[1724141565923,1.95256462,60944.0,60943.0,0.07890025]
[1724141566812,1.95156462,60944.0,60943.0,0.07890025]
[1724141567633,1.95156462,60944.0,60940.0,0.009086]
[1724141567634,1.477837,60941.0,60940.0,0.009086]
[1724141567879,2.02193724,60941.0,60940.0,0.009086]
[1724141568312,2.0465124,60941.0,60940.0,0.009086]
[1724141568892,2.0605124,60941.0,60940.0,0.009086]
[1724141569096,2.22449118,60941.0,60940.0,0.009086]
[1724141569406,2.1026154,60941.0,60940.0,0.009086]
[1724141569658,2.17634182,60941.0,60940.0,0.009086]
[1724141569904,2.02636304,60941.0,60940.0,0.009086]
[1724141570127,2.02536304,60941.0,60940.0,0.009086]
[1724141570331,2.01136304,60941.0,60940.0,0.009086]
[1724141570541,2.02536304,60941.0,60940.0,0.009086]
[1724141570768,2.03936304,60941.0,60940.0,0.009086]
[1724141571176,2.04036304,60941.0,60940.0,0.009086]
[1724141571383,2.20434182,60941.0,60940.0,0.009086]
[1724141571794,2.10434182,60941.0,60940.0,0.009086]
[1724141572022,2.03936304,60941.0,60940.0,0.009086]
[1724141572835,2.04036304,60941.0,60940.0,0.009086]
[1724141573038,2.03936304,60941.0,60940.0,0.009086]
[1724141573479,2.04036304,60941.0,60940.0,0.009086]
[1724141576546,2.0393813,60941.0,60940.0,0.009086]
[1724141576751,2.0403813,60941.0,60940.0,0.009086]
[1724141576953,2.0393813,60941.0,60940.0,0.009086]
[1724141577685,2.0403813,60941.0,60940.0,0.009086]
[1724141578089,2.0393813,60941.0,60940.0,0.009086]
[1724141578547,2.0403813,60941.0,60940.0,0.009086]
[1724141578748,2.0393813,60941.0,60940.0,0.009086]
[1724141578967,2.0403813,60941.0,60940.0,0.009086]
[1724141579282,1.476886,60939.0,60938.0,0.039469]
[1724141579408,1.64071971,60939.0,60938.0,0.039469]
[1724141580633,1.66871971,60939.0,60938.0,0.039469]
[1724141584115,1.477003,60934.0,60923.0,0.0050501]
[1724141584323,2.08085971,60934.0,60923.0,0.0050501]
[1724141584529,2.08085971,60934.0,60932.0,0.1432]
[1724141585800,2.09285971,60934.0,60932.0,0.1432]
[1724141586189,2.08085971,60934.0,60932.0,0.1432]
[1724141586368,2.08985971,60934.0,60932.0,0.1432]
[1724141586569,2.10285971,60934.0,60932.0,0.1432]
[1724141586976,2.09385971,60934.0,60932.0,0.1432]
[1724141587396,2.10385971,60934.0,60932.0,0.1432]
[1724141588753,2.09085971,60934.0,60932.0,0.1432]
[1724141589162,2.09485971,60934.0,60932.0,0.1432]
[1724141589551,2.10585971,60934.0,60932.0,0.1432]
[1724141590651,1.77763671,60934.0,60932.0,0.1432]
[1724141592667,1.77763671,60934.0,60933.0,0.147597]
[1724141594363,1.66583671,60934.0,60933.0,0.147597]
[1724141594567,1.77763671,60934.0,60933.0,0.147597]
[1724141597633,1.77763671,60934.0,60933.0,0.087597]
[1724141597634,2.10585971,60934.0,60933.0,0.087597]
[1724141597839,2.40805526,60934.0,60933.0,0.009097]
[1724141598038,2.65803404,60934.0,60933.0,0.009097]
[1724141598197,2.44491273,60934.0,60933.0,0.009097]
[1724141599629,2.38291273,60934.0,60933.0,0.009097]
[1724141599982,2.38291273,60934.0,60926.0,0.0761]
[1724141599983,2.38291273,60934.0,60925.0,0.009097]
[1724141599984,0.165133,60926.0,60925.0,0.009097]
[1724141600185,1.66044703,60926.0,60925.0,0.009097]
[1724141600391,1.97888773,60926.0,60925.0,0.01688468]
[1724141600592,2.30715473,60926.0,60925.0,0.009097]
[1724141600799,2.63542173,60926.0,60925.0,0.009097]
[1724141601000,2.79940051,60926.0,60925.0,0.009097]
[1724141601419,2.63542173,60926.0,60925.0,0.009097]
[1724141602046,2.78507425,60926.0,60925.0,0.009097]
[1724141602253,2.64842173,60926.0,60925.0,0.009097]
[1724141602465,3.43542173,60926.0,60925.0,0.009097]
[1724141602660,3.57206916,60926.0,60925.0,0.009097]
[1724141602866,3.62740051,60926.0,60925.0,0.009097]
[1724141603078,3.62940051,60926.0,60925.0,0.009097]
[1724141603284,3.75404794,60926.0,60925.0,0.009097]
[1724141603484,3.71147736,60926.0,60925.0,0.009097]
[1724141603689,3.70747736,60926.0,60925.0,0.009097]
[1724141603899,3.72147736,60926.0,60925.0,0.009097]
[1724141604512,3.62344006,60926.0,60925.0,0.009097]
[1724141605386,3.63744006,60926.0,60925.0,0.009097]
[1724141605590,3.71092179,60926.0,60925.0,0.009097]
[1724141606025,3.69692179,60926.0,60925.0,0.009097]
[1724141606228,3.71092179,60926.0,60925.0,0.009097]
[1724141606473,3.64144006,60926.0,60925.0,0.009097]
[1724141607481,3.69040791,60926.0,60925.0,0.009097]
[1724141607699,3.69040791,60926.0,60919.0,0.009086]
[1724141607700,0.001,60920.0,60919.0,0.009086]
[1724141607904,1.20508171,60920.0,60919.0,0.009086]
[1724141608128,1.69748071,60920.0,60919.0,0.009086]
[1724141608965,2.68237771,60920.0,60919.0,0.009086]
[1724141609089,2.71937771,60920.0,60919.0,0.009086]
[1724141610126,2.89735649,60920.0,60919.0,0.009086]
[1724141610855,2.90644249,60920.0,60919.0,0.009086]
[1724141613470,2.74246371,60920.0,60919.0,0.009086]
[1724141615250,3.07176271,60920.0,60919.0,0.009086]
[1724141615448,3.07176271,60920.0,60911.0,0.0792]
[1724141615449,0.164171,60912.0,60911.0,0.0792]
[1724141615652,1.24634671,60912.0,60911.0,0.0792]
[1724141616007,1.24634671,60912.0,60911.0,0.0002]
[1724141616359,2.55971471,60912.0,60911.0,0.0002]
[1724141616782,2.56971471,60912.0,60911.0,0.0002]
[1724141617951,2.58271471,60912.0,60911.0,0.0002]
[1724141618837,2.66136112,60912.0,60911.0,0.0002]
[1724141619002,2.58271471,60912.0,60911.0,0.0002]
[1724141619604,2.68271471,60912.0,60911.0,0.0002]
[1724141620038,2.68271471,60912.0,60911.0,0.0011086]
[1724141620205,3.01205671,60912.0,60911.0,0.0011086]
[1724141620412,3.01205671,60912.0,60887.0,1e-06]
[1724141620413,0.001,60888.0,60887.0,1e-06]
[1724141620617,0.001,60888.0,60885.0,0.009097]
[1724141620618,0.493723,60886.0,60885.0,0.009097]
[1724141620817,0.821287,60880.0,60877.0,0.084886]
[1724141621017,1.85395071,60880.0,60877.0,0.084886]
[1724141621259,1.85395071,60880.0,60879.0,0.084886]
[1724141621458,1.85395071,60880.0,60877.0,0.009086]
[1724141621459,1.149837,60878.0,60877.0,0.009086]
[1724141621911,0.164262,60878.0,60877.0,0.075586]
[1724141622085,0.1,60886.0,60877.0,0.075586]
[1724141622086,0.16426,60879.0,60878.0,0.0665]
[1724141622420,0.49278,60879.0,60878.0,0.0665]
[1724141622655,0.8213,60879.0,60878.0,0.08169773]
[1724141622856,0.8213,60879.0,60878.0,0.0665]
[1724141622857,1.14982,60879.0,60878.0,0.0665]
[1724141623273,0.8213,60879.0,60878.0,0.0665]
[1724141623473,0.50478,60879.0,60878.0,0.06978483]
[1724141623676,0.50478,60879.0,60878.0,0.0665]
[1724141623926,0.8213,60879.0,60878.0,0.08169773]
[1724141624160,0.8213,60879.0,60878.0,0.0665]
[1724141624568,0.8213,60879.0,60878.0,0.1479]
[1724141624925,0.8223,60879.0,60878.0,0.1479]
[1724141625725,0.001,60879.0,60878.0,0.31273371]
[1724141625933,0.001,60879.0,60878.0,0.32993144]
[1724141626109,0.328356,60910.0,60883.0,0.0815]
[1724141626110,0.164236,60888.0,60883.0,0.0815]
[1724141626314,0.164238,60887.0,60885.0,0.0815]
[1724141626537,0.164238,60887.0,60886.0,0.14748433]
[1724141626736,0.164238,60887.0,60886.0,0.16259247]
[1724141627358,0.164238,60887.0,60886.0,0.15930814]
[1724141627571,0.492715,60887.0,60886.0,0.1442]
[1724141627980,0.164238,60887.0,60886.0,0.1442]
[1724141628192,0.492715,60887.0,60886.0,0.14412]
[1724141628391,0.164238,60887.0,60886.0,0.14412]
[1724141628600,0.167238,60887.0,60886.0,0.14412]
[1724141628810,0.495715,60887.0,60886.0,0.14412]
[1724141631549,0.824192,60887.0,60886.0,0.14412]
[1724141632494,0.824192,60887.0,60886.0,0.1450286]
[1724141634431,1.152669,60887.0,60886.0,0.1450286]
[1724141634843,1.152669,60887.0,60886.0,0.0824086]
[1724141635491,1.152669,60887.0,60886.0,0.0009086]
[1724141636453,1.481146,60887.0,60886.0,0.0009086]
[1724141637866,1.64497971,60887.0,60886.0,0.0009086]
[1724141638652,2.05145671,60887.0,60886.0,0.0009086]
[1724141639666,0.492894,60865.0,60864.0,0.009086]
[1724141639862,1.64251571,60865.0,60864.0,0.009086]
[1724141640489,1.150086,60865.0,60864.0,0.009086]
[1724141640701,0.164298,60865.0,60864.0,0.009086]
[1724141640930,0.492894,60865.0,60864.0,0.009086]
[1724141641346,0.164298,60865.0,60864.0,0.009086]
[1724141641598,0.164298,60865.0,60864.0,0.010086]
[1724141641599,0.493894,60865.0,60864.0,0.010086]
[1724141641823,0.001,60865.0,60864.0,0.010086]
[1724141642046,0.001,60865.0,60864.0,0.17491971]
[1724141642282,0.001,60865.0,60864.0,0.17720497]
[1724141642484,0.002,60865.0,60864.0,0.31560497]
[1724141642693,0.002,60865.0,60864.0,0.41560497]
[1724141642905,0.002,60865.0,60864.0,0.41231971]
[1724141643342,0.166298,60865.0,60864.0,0.248886]
[1724141643553,0.82349,60865.0,60864.0,0.248886]
[1724141643771,0.494894,60865.0,60864.0,0.248886]
[1724141644219,0.494894,60865.0,60864.0,0.148886]
[1724141644436,0.82349,60865.0,60864.0,0.148886]
[1724141645066,0.494894,60865.0,60864.0,0.148886]
[1724141646095,0.82349,60865.0,60864.0,0.148886]
[1724141646298,0.494894,60865.0,60864.0,0.148886]
[1724141647323,0.82349,60865.0,60864.0,0.148886]
[1724141648558,0.494894,60865.0,60864.0,0.148886]
[1724141650206,0.002,60865.0,60864.0,0.148886]
[1724141650584,0.002,60865.0,60864.0,0.41371971]
[1724141651411,0.002,60865.0,60864.0,0.41571971]
[1724141655415,0.002,60865.0,60864.0,0.41671971]
[1724141655616,0.002,60865.0,60864.0,0.44071971]
[1724141655826,0.002,60865.0,60864.0,0.47690269]
[1724141656013,0.164255,60881.0,60875.0,0.0827]